Cogmind - Beta 16 X1 @@@ ROGUE MODE // 2025.10.12 @ 22:55:05 Player: Jezoensis Result: Destroyed by AG-87759 with Assembled Focal Cannon Performance ------------- Evolutions (3) 1500 Regions Visited (11) 2200 Robots Destroyed (99) 495 Value Destroyed (3200) 3200 Prototype IDs (45) 900 Alien Tech Used (0) 0 Bonus (3122) 3122 TOTAL SCORE: 11417 Bonus ------- High Alert Combat Kills 37 Follower Combat Kills 502 Aligned with FarCom 300 Met Imprinter 300 Destroyed Z-Imprinter 1000 Triggered Deep Caves Wall 500 Exposed GOLEM Chamber 500 Friendly Fire -17 Cogmind --------- Core Integrity 0/700 Matter 285/300 Energy 637/1100 System Corruption 0% Temperature Cool (7) Movement Walking (130) Location -7/Deep Caves Parts ------- > --- POWER (1) -------- Zionite Light DM Reactor > --- PROPULSION (3) --- Assembled Alloy Leg Assembled Alloy Leg Potential Leg > --- UTILITY (6) ------ Assembled Nanovents Assembled Nanovents Assembled Biocell Array Advanced Visual Processing Unit GOLEM Unit > --- WEAPON (3) ------- Assembled Focal Cannon Assembled Focal Cannon Assembled Focal Cannon > --- INVENTORY (5) ---- Zionite Composite Leg I Makeshift ECM Suite GOLEM Unit Heavy Rocket Launcher Peak State ------------ > --- POWER ------------ Zionite Light DM Reactor > --- PROPULSION ------- Assembled Alloy Leg Assembled Alloy Leg Potential Leg > --- UTILITY ---------- Assembled Nanovents Assembled Nanovents Assembled Biocell Array Advanced Visual Processing Unit GOLEM Unit > --- WEAPON ----------- Assembled Focal Cannon Assembled Focal Cannon Assembled Focal Cannon > --- INVENTORY -------- Zionite Composite Leg I Makeshift ECM Suite GOLEM Unit Heavy Rocket Launcher [Rating: 110] Favorites ----------- Power Heavy Ion Engine Engine Heavy Ion Engine Power Core Light Nuclear Core Reactor Zionite Light DM Reactor Propulsion Wheel Treads Armored Treads Leg Assembled Alloy Leg Wheel Wheel Utility Structural Scanner Device Structural Scanner Storage Huge Storage Unit Processor Advanced Targeting Computer Hackware Hacking Suite Protection Hardened Medium Armor Plating Weapon Advanced Beam Rifle Energy Gun Advanced Beam Rifle Energy Cannon Assembled Focal Cannon Ballistic Gun Enhanced Autogun Launcher Advanced EMP Blaster Special Weapon Plasma Cutter Slashing Weapon Scythe Build | -11 -10 -10 -10 -9 -8 -8 -7 -7 -7 -7 -7 ------- Run | Yrd Mat Min Exi Min Mat Sto Fac Low Low Zio Dee Slots Evolved 6 | . . . . . 4 . 2 . . . . Power . | . . . . . . . . . . . . Propulsion 1 | . . . . . 1 . . . . . . Utility 4 | . . . . . 2 . 2 . . . . Weapon 1 | . . . . . 1 . . . . . . Parts Attached 108 | 7 9 2 1 3 23 28 5 1 1 3 25 Power 10 | 1 2 . . . 4 1 . . . . 2 Engine 8 | 1 1 . . . 4 1 . . . . 1 Core 1 | . 1 . . . . . . . . . . Reactor 1 | . . . . . . . . . . . 1 Propulsion 24 | 3 2 . . 1 6 5 1 . 1 1 4 Treads 9 | . 1 . . 1 2 2 . . . 1 2 Leg 2 | . . . . . . . . . . . 2 Wheel 13 | 3 1 . . . 4 3 1 . 1 . . Hover . | . . . . . . . . . . . . Flight . | . . . . . . . . . . . . Utility 38 | 1 2 2 1 1 8 8 3 . . . 12 Device 16 | . 2 1 . . 3 3 1 . . . 6 Storage 6 | 1 . 1 1 1 . 2 . . . . . Processor 7 | . . . . . 2 3 1 . . . 1 Hackware 2 | . . . . . 1 . 1 . . . . Protection 7 | . . . . . 2 . . . . . 5 Artifact . | . . . . . . . . . . . . Weapon 36 | 2 3 . . 1 5 14 1 1 . 2 7 Energy Gun 15 | 2 . . . . 3 5 1 . . . 4 Energy Cannon 1 | . . . . . . 1 . . . . . Ballistic Gun 9 | . 1 . . . 2 5 . . . . 1 Ballistic Cannon . | . . . . . . . . . . . . Launcher 6 | . 1 . . 1 . 2 . 1 . . 1 Special Weapon 4 | . 1 . . . . . . . . 2 1 Impact Weapon . | . . . . . . . . . . . . Slashing Weapon 1 | . . . . . . 1 . . . . . Piercing Weapon . | . . . . . . . . . . . . Special Melee Weapon . | . . . . . . . . . . . . Unidentified Prototypes 16 | . . 1 . . 3 5 . . . 1 6 Parts Lost 35 | . 2 . . . 14 8 . . 1 . 10 Power 3 | . . . . . 2 . . . . . 1 Propulsion 14 | . 1 . . . 6 4 . . 1 . 2 Utility 7 | . . . . . 3 . . . . . 4 Weapon 11 | . 1 . . . 3 4 . . . . 3 Highest Loss Streak 9 | . 1 . . . 9 3 . . 1 . 3 To Critical Strikes 1 | . . . . . 1 . . . . . . Average Backups 18 | 3 7 8 11 16 16 20 24 25 24 25 16 Power . | . . . . . 1 1 1 1 1 1 . Propulsion 3 | . . 1 2 4 3 3 5 5 4 3 1 Utility 7 | . 3 4 5 6 7 10 8 9 9 9 7 Weapon 6 | 1 2 3 3 4 3 4 9 9 9 10 6 Tool/Special . | . . . . . . . . . . . . Unused Backups 17 | . 1 . . . 1 1 6 . . . 8 Power 1 | . . . . . 1 . . . . . . Propulsion 2 | . . . . . . . 1 . . . 1 Utility 11 | . . . . . . 1 4 . . . 6 Weapon 3 | . 1 . . . . . 1 . . . 1 Tool/Special . | . . . . . . . . . . . . Average Slot Usage (%) 97 | . 96 100 100 100 92 98 99 100 99 100 92 Engine 6 | . 13 . . . 7 9 7 7 7 7 3 Core 1 | . . 14 14 14 . . . . . . . Treads 6 | . 3 . . 2 8 9 7 7 7 7 7 Leg 2 | . . . . . . . . . . . 8 Wheel 14 | . 23 28 28 25 16 16 15 15 14 15 5 Device 15 | . 11 14 14 14 15 17 21 15 15 15 16 Storage 8 | . 14 14 14 14 9 9 7 7 7 7 7 Processor 9 | . . . . . 6 9 7 15 15 15 11 Protection 4 | . . . . . 3 . 7 7 7 7 4 Energy Gun 13 | . 21 14 14 12 13 16 13 15 15 15 8 Ballistic Gun 6 | . 5 14 14 12 10 6 5 2 6 6 5 Peak Build Rating 110 | 6 10 18 13 15 28 36 44 51 50 53 110 Average Rating 42 | 4 7 10 11 13 23 31 42 48 49 49 69 On Entrance 25 | . 6 10 11 13 15 27 36 43 49 50 50 Avg Prop Armor Cover (%) 7 | 10 . . . 1 9 11 9 9 9 9 8 Naked Turns . | . . . . . . . . . . . . Heaviest Build 116 | 14 15 29 29 53 65 103 107 105 105 105 116 Greatest Support 90 | 20 20 20 20 20 32 40 22 22 22 22 90 Greatest Overweight (x) 11 | . 1 1 1 5 5 5 5 4 4 4 11 Average Overweight (x) 2 | . . . 1 1 1 2 4 4 4 4 4 Largest Inventory Capacity 25 | 8 8 15 15 20 20 25 25 25 25 25 25 Average Capacity 20 | 5 8 14 15 18 19 21 25 25 25 25 19 Most Carried 25 | 5 8 10 13 20 20 25 25 25 25 25 25 Average Carried 18 | 3 7 9 11 16 16 20 24 25 24 24 17 Final Capacity 25 | 8 8 15 15 20 20 25 25 25 25 25 5 Final Carried 25 | 5 8 10 13 20 19 25 25 25 25 25 5 Class Distribution -------------------- 35% | Skirmisher 21% | Mutant 10% | Scavenger-Skirmisher 8% | Golem 6% | Gunner 5% | Commander-Skirmisher 4% | Assassin 3% | Commander-Mutant Dominant Class ---------------- Mutant | -10/Materials Mutant | -10/Mines Mutant | -10/Exiles Skirmisher | -9/Mines Scavenger-Skirmisher | -8/Materials Commander-Mutant | -8/Storage Skirmisher | -7/Factory Assassin | -7/Lower Caves Skirmisher | -7/Lower Caves Skirmisher | -7/Zion Golem | -7/Deep Caves Resources | -11 -10 -10 -10 -9 -8 -8 -7 -7 -7 -7 -7 ----------- Run | Yrd Mat Min Exi Min Mat Sto Fac Low Low Zio Dee Matter Collected 3744 | 270 543 . 257 90 338 676 210 120 64 30 1146 Remotely 99 | . . . . . . . . . . . 99 Salvage Created 4413 | 144 558 51 . 88 460 1124 457 194 249 . 1088 Parts 200 | 9 36 . . 11 13 57 22 12 7 . 33 Haulers Intercepted 4 | . 2 . . . 1 1 . . . . . Recyclers Shooed 1 | . . 1 . . . . . . . . . Parts Field Recycled . | . . . . . . . . . . . . Retrieved Matter . | . . . . . . . . . . . . Parts Self-Destructed 14 | . . . . . . . . 14 . . . Prevented 9 | . . . . . . . . 3 6 . . Parts Restored . | . . . . . . . . . . . . Kills | -11 -10 -10 -10 -9 -8 -8 -7 -7 -7 -7 -7 ------- Run | Yrd Mat Min Exi Min Mat Sto Fac Low Low Zio Dee Combat Hostiles Destroyed 115 | . 16 2 . 5 6 19 8 5 3 . 51 Guns 47 | . 12 . . . 5 7 8 3 1 . 11 Cannons 7 | . . . . . . 3 . . . . 4 AOE 57 | . 4 2 . 5 . 8 . 2 2 . 34 Classes Destroyed 18 | 2 6 . . 2 2 2 1 . . . 3 Worker 8 | . 1 . . 3 . 3 1 . . . . Builder 4 | . . . . 1 . 3 . . . . . Tunneler 3 | 3 . . . . . . . . . . . Hauler 4 | . 2 . . . 1 1 . . . . . Recycler 6 | 1 1 . . . 1 2 1 . . . . Mechanic 1 | . 1 . . . . . . . . . . Watcher 2 | . 1 . . . . 1 . . . . . Swarmer 14 | . 6 . . . . 3 2 3 . . . Grunt 30 | . 10 2 . . . 10 5 1 2 . . Brawler 2 | . . . . . . 2 . . . . . Duelist 3 | . . . . . . 1 . 1 1 . . Sentry 6 | . . . . . 3 3 . . . . . Hunter 3 | . . . . . 3 . . . . . . Programmer 1 | . . . . . . . 1 . . . . Z-Light 8 | . . . . . . . . . . . 8 Packrat 1 | . . . . . . . . . 1 . . Assembler 2 | . . . . . . . . . . . 2 Assembled 44 | . . . . 5 . . . . . . 39 Golem 3 | . . . . . . . . . . . 3 Best Kill Streak 38 | 3 7 2 . 5 3 9 3 3 3 . 38 Combat Bots Only 36 | . 6 2 . 5 2 8 2 3 3 . 36 Max Kills in Single Turn 25 | 1 1 1 . 3 1 4 1 1 2 . 25 Gunslinging 1 | . . . . . . . . . . . 1 Exploded 24 | . 1 1 . 3 . 3 . 1 2 . 24 Melee . | . . . . . . . . . . . . Uniques/NPCs Destroyed 1 | . . . . . . . . . . . 1 Z-Imprinter (-7/Deep Caves) Combat | -11 -10 -10 -10 -9 -8 -8 -7 -7 -7 -7 -7 -------- Run | Yrd Mat Min Exi Min Mat Sto Fac Low Low Zio Dee Hostile Shots Fired 453 | . 88 5 . 2 103 90 34 6 4 . 121 Missed 122 | . 22 1 . 1 30 22 9 . 2 . 35 Hits 331 | . 66 4 . 1 73 68 25 6 2 . 86 Melee 6 | . . . . . . 4 . . 2 . . Projectile 325 | . 66 4 . 1 73 64 25 6 . . 86 AOE 1 | . . . . 1 . . . . . . . Critical Strikes 11 | . . 1 . . 2 6 1 1 . . . Damage Taken 6827 | . 653 64 . 59 1075 1272 386 96 74 . 3148 Core 1360 | . 152 . . 16 220 265 . 31 . . 676 Absorbed by Shields . | . . . . . . . . . . . . Redirected to Shielding 114 | . . . . . . . . . . . 114 Core Remaining (%) 47 | 100 . . . 32 . 11 . . . . . Volleys Fired 280 | 10 60 3 . 11 44 49 16 7 9 . 71 Largest 3 | 2 2 1 . 2 3 3 3 3 3 . 3 Hottest 182 | 100 100 30 . 70 147 182 147 147 147 . 180 Shots Fired 568 | 20 112 3 . 20 82 109 43 17 21 . 141 Gun 487 | 20 104 . . 16 81 94 43 15 18 . 96 Cannon 28 | . . . . . . 6 . . . . 22 Launcher 47 | . 7 3 . 4 . 9 . 2 3 . 19 Special 6 | . 1 . . . 1 . . . . . 4 Kinetic 156 | . 20 . . 8 33 44 15 5 6 . 25 Thermal 328 | 20 85 . . 8 49 56 28 10 12 . 60 Explosive 38 | . 7 3 . 4 . 9 . . . . 15 Electromagnetic 31 | . . . . . . . . 2 3 . 26 Phasic 15 | . . . . . . . . . . . 15 Robot Hit Streak 19 | 4 18 3 . 9 13 19 12 7 13 . 13 Robot Miss Streak 4 | 2 4 . . 3 2 2 4 1 1 . 4 Penetration Max . | . . . . . . . . . . . . Secondary Targets 10 | . 3 . . . 1 1 2 . . . 3 Max Gunslinging Chain 1 | . 1 . . . 1 1 1 . . . 1 Shots Hit Robots 368 | 13 75 3 . 9 61 73 31 11 17 . 75 Core Hits 259 | 5 39 6 . 14 16 41 15 7 6 . 110 Critical Kills 1 | . . . . . . . . . . . 1 Critical Parts Destroyed . | . . . . . . . . . . . . Critical Strikes 24 | 1 7 . . . 3 3 3 1 2 . 4 Burn 22 | 1 7 . . . 3 3 3 1 2 . 2 Destroy 1 | . . . . . . . . . . . 1 Intensify 1 | . . . . . . . . . . . 1 Melee Attacks 23 | . . . . . . 13 8 2 . . . Impact . | . . . . . . . . . . . . Slashing 23 | . . . . . . 13 8 2 . . . Piercing . | . . . . . . . . . . . . Sneak Attacks 4 | . . . . . . 3 1 . . . . Combat Hostiles . | . . . . . . . . . . . . Follow-up Attacks . | . . . . . . . . . . . . Damage Inflicted 12505 | 163 1354 205 . 409 865 2128 679 427 445 . 5830 Guns 5414 | 163 907 . . 92 865 1095 618 178 268 . 1228 Cannons 381 | . . . . . . 119 . . . . 262 Explosions 6242 | . 447 205 . 317 . 696 . 249 177 . 4151 Melee 279 | . . . . . . 218 61 . . . . Ramming . | . . . . . . . . . . . . Kinetic 1174 | . 74 . . 17 165 360 185 34 68 . 271 Thermal 4426 | 163 833 . . 75 700 854 433 252 200 . 916 Explosive 5227 | . 447 205 . 317 . 696 . . . . 3562 Electromagnetic 1111 | . . . . . . . . 141 177 . 793 Impact . | . . . . . . . . . . . . Slashing 468 | . . . . . . 218 61 . . . 189 Piercing . | . . . . . . . . . . . . Phasic 99 | . . . . . . . . . . . 99 Highest Corruption 6 | . . . . . 1 6 . . . . . Average Corruption 4 | . . . . . 1 5 . . . . . Corruption Purged . | . . . . . . . . . . . . Corruption Blocked . | . . . . . . . . . . . . Effects 20 | . . . . . 3 17 . . . . . Message Errors 4 | . . . . . 1 3 . . . . . Matter Fused 5 | . . . . . 1 4 . . . . . Heat Flow Errors 6 | . . . . . . 6 . . . . . Parts Rejected 1 | . . . . . . 1 . . . . . Data Loss (minor) 2 | . . . . . 1 1 . . . . . Weapon Failures 2 | . . . . . . 2 . . . . . Overload Shots . | . . . . . . . . . . . . Overflow Damage 313 | . 12 8 . 5 . 29 . . . . 259 Projectiles 23 | . . . . . . . . . . . 23 Explosions 288 | . 12 8 . 5 . 27 . . . . 236 Melee 2 | . . . . . . 2 . . . . . Knockbacks . | . . . . . . . . . . . . Impact . | . . . . . . . . . . . . Kinetic . | . . . . . . . . . . . . Secondary . | . . . . . . . . . . . . Self-Inflicted Damage 162 | . . . . . . 55 . . . . 107 Shots 4 | . . . . . . 2 . . . . 2 Rammed . | . . . . . . . . . . . . Targets Rammed . | . . . . . . . . . . . . Kicked . | . . . . . . . . . . . . Crushed . | . . . . . . . . . . . . Highest Temperature 414 | 156 168 30 . 66 112 307 15 127 354 . 414 Average Temperature 73 | 72 58 12 . 25 20 135 15 70 151 . 87 Received Heat Transfer 1590 | . 228 54 . 20 126 360 171 36 . . 595 Effects 3 | . . . . . . . . . . . 3 Interference 2 | . . . . . . . . . . . 2 Short Circuit 1 | . . . . . . . . . . . 1 Siege Activations . | . . . . . . . . . . . . Martial Activations . | . . . . . . . . . . . . Shielding Activations . | . . . . . . . . . . . . Robots Disrupted . | . . . . . . . . . . . . Combat Hostiles . | . . . . . . . . . . . . Robots Corrupted 2 | . . . . . . . . . . . 2 Combat Hostiles 2 | . . . . . . . . . . . 2 Parts Fried 5 | . . . . . . . . . 1 . 4 Impact Corruptions . | . . . . . . . . . . . . Robots Melted 2 | . . . . . 1 1 . . . . . Combat Hostiles 2 | . . . . . 1 1 . . . . . Parts Melted 23 | 2 6 . . . 6 4 3 1 . . 1 Heat Transferred 10396 | 555 2923 . . 222 1739 1783 962 433 518 . 1261 Parts Sabotaged . | . . . . . . . . . . . . Parts Stolen . | . . . . . . . . . . . . Parts Stripped . | . . . . . . . . . . . . Power Chain Reactions 4 | . . . . . . . . 1 1 . 2 Alert | -11 -10 -10 -10 -9 -8 -8 -7 -7 -7 -7 -7 ------- Run | Yrd Mat Min Exi Min Mat Sto Fac Low Low Zio Dee Maximum Alert Level 2 | . 1 . . . . 1 2 . . . . Low Security (%) 67 | 100 78 100 . 100 100 45 34 . . . . Level 1 26 | . 21 . . . . 54 36 . . . . Level 2 5 | . . . . . . . 29 . . . . Level 3 . | . . . . . . . . . . . . Level 4 . | . . . . . . . . . . . . Level 5 . | . . . . . . . . . . . . High Security . | . . . . . . . . . . . . Max Security . | . . . . . . . . . . . . Peak Influence 448 | 10 295 165 . 27 50 323 448 . . . . Initial 140 | . 6 108 . . . . 140 . . . . Average 141 | 2 110 135 . 1 14 183 299 . . . . Influence Increases 2844 | 20 553 67 . 66 227 1039 667 135 70 . . Destroy 0b10 Robot/C 1460 | . 320 40 . 20 120 500 280 120 60 . . Destroy 0b10 Robot/NC 160 | 20 30 . . 20 10 70 10 . . . . Destroy Leader 292 | . 56 10 . . 62 84 60 10 10 . . Allied During Kill 270 | . . . . 2 . 170 93 5 . . . Successful Hack 87 | . 5 . . 6 33 27 16 . . . . Select Force Hacks 60 | . 60 . . . . . . . . . . Disable Machine 150 | . 30 . . . . 120 . . . . . Anti-Garrison Action 200 | . . . . . . . 200 . . . . Destroy Structure 165 | . 52 17 . 18 2 68 8 . . . . Influence Decreases 2844 | 10 284 231 115 66 225 733 582 380 218 . . Entered New Map 635 | . 4 171 115 . . 2 168 146 29 . . Time Decay 1565 | 10 260 60 . 38 174 336 294 214 179 . . Lost Part 143 | . 20 . . . 51 62 . . 10 . . Lost Ally 268 | . . . . 28 . 100 120 20 . . . Purge Threat 233 | . . . . . . 233 . . . . . Squads Dispatched 18 | . 4 . . 1 4 3 6 . . . . Investigation 7 | . 3 . . 1 1 . 2 . . . . Extermination 1 | . . . . . . . 1 . . . . Reinforcement 4 | . 1 . . . . 1 2 . . . . Assault 2 | . . . . . . 2 . . . . . Garrison 4 | . . . . . 3 . 1 . . . . Intercept . | . . . . . . . . . . . . Searches Triggered . | . . . . . . . . . . . . Construction Impeded . | . . . . . . . . . . . . Haulers Reinforced . | . . . . . . . . . . . . Active Scanning Responses . | . . . . . . . . . . . . Cargo Convoy Interrupts . | . . . . . . . . . . . . Stealth | -11 -10 -10 -10 -9 -8 -8 -7 -7 -7 -7 -7 --------- Run | Yrd Mat Min Exi Min Mat Sto Fac Low Low Zio Dee Distress Signals 5 | . 1 . . . 1 3 . . . . . Communications Jammed . | . . . . . . . . . . . . Distress Signals . | . . . . . . . . . . . . Times Spotted 195 | . 23 2 . 14 8 30 15 6 3 . 94 Peak Tracking Total 37 | . 7 2 . 13 5 7 3 3 3 . 37 Tactical Retreats 3 | . . . . . . . . . . . 3 Traps | -11 -10 -10 -10 -9 -8 -8 -7 -7 -7 -7 -7 ------- Run | Yrd Mat Min Exi Min Mat Sto Fac Low Low Zio Dee Traps Triggered 3 | . 1 . . . . 2 . . . . . Indirectly . | . . . . . . . . . . . . Trap Hack Attempts . | . . . . . . . . . . . . Triggered . | . . . . . . . . . . . . Disarmed . | . . . . . . . . . . . . Reprogrammed . | . . . . . . . . . . . . Reused . | . . . . . . . . . . . . Traps Extracted . | . . . . . . . . . . . . Installed . | . . . . . . . . . . . . Triggered . | . . . . . . . . . . . . Machines | -11 -10 -10 -10 -9 -8 -8 -7 -7 -7 -7 -7 ---------- Run | Yrd Mat Min Exi Min Mat Sto Fac Low Low Zio Dee Machines Disabled 14 | . 2 . . . . 8 . . . 3 1 Max in Single Turn 2 | . 2 . . . . 1 . . . 1 1 Garrison Access 2 | . . . . . . 1 1 . . . . Machines Repaired . | . . . . . . . . . . . . Machines Dismantled 3 | . . . . . . . . . . 3 . Machines Sabotaged . | . . . . . . . . . . . . Overloaded Fab Kills . | . . . . . . . . . . . . Hacking | -11 -10 -10 -10 -9 -8 -8 -7 -7 -7 -7 -7 --------- Run | Yrd Mat Min Exi Min Mat Sto Fac Low Low Zio Dee Machines Accessed 30 | . 8 . 1 1 4 8 5 . 2 1 . Terminals 20 | . 6 . . 1 4 7 2 . . . . Fabricators 2 | . . . . . . . 2 . . . . Repair Stations . | . . . . . . . . . . . . Recycling Units 2 | . 2 . . . . . . . . . . Scanalyzers . | . . . . . . . . . . . . Garrison Access 2 | . . . . . . 1 1 . . . . Total Hacks 86 | . 24 . 1 3 17 20 10 . 8 3 . Successful 46 | . 10 . 1 1 7 11 5 . 8 3 . Failed 38 | . 13 . . 2 9 9 5 . . . . Catastrophic 5 | . 2 . . . . 2 1 . . . . Database Lockouts 2 | . 1 . . . 1 . . . . . . Manual 48 | . 17 . 1 3 14 10 3 . . . . Terminals 61 | . 20 . . 3 17 17 4 . . . . Fabricators 4 | . . . . . . . 4 . . . . Repair Stations . | . . . . . . . . . . . . Recycling Units 4 | . 4 . . . . . . . . . . Scanalyzers . | . . . . . . . . . . . . Garrison Access 5 | . . . . . . 3 2 . . . . Terminal Hacks 30 | . 6 . 1 1 5 6 . . 8 3 . Record 7 | . . . . . . . . . 7 . . Part Schematic 4 | . . . . . 1 . . . . 3 . Robot Analysis 5 | . 2 . . 1 1 1 . . . . . Prototype ID Bank 1 | . 1 . . . . . . . . . . Open Door 2 | . . . . . . 1 . . 1 . . Terminal Index 3 | . 1 . . . 1 1 . . . . . Unreport Threat 2 | . . . . . . 2 . . . . . Locate Traps 3 | . 1 . . . 1 1 . . . . . Recall Reinforcements 1 | . 1 . . . . . . . . . . Registered Components 1 | . . . . . 1 . . . . . . Proto ID Catalog 1 | . . . 1 . . . . . . . . Fabricator Hacks 3 | . . . . . . . 3 . . . . Network Status 1 | . . . . . . . 1 . . . . Load Schematic 1 | . . . . . . . 1 . . . . Build 1 | . . . . . . . 1 . . . . Repair Station Hacks . | . . . . . . . . . . . . Recycling Unit Hacks . | . . . . . . . . . . . . Scanalyzer . | . . . . . . . . . . . . Garrison Access Hacks 1 | . . . . . . 1 . . . . . Seal Access 1 | . . . . . . 1 . . . . . Unauthorized Hacks 12 | . 4 . . . 2 4 2 . . . . Terminals 9 | . 2 . . . 2 4 1 . . . . Track 1 | . 1 . . . . . . . . . . Botnet 6 | . 1 . . . 2 2 1 . . . . Operators 2 | . . . . . . 2 . . . . . Fabricators . | . . . . . . . . . . . . Repair Stations . | . . . . . . . . . . . . Recycling Units 2 | . 2 . . . . . . . . . . Tunnel 2 | . 2 . . . . . . . . . . Scanalyzers . | . . . . . . . . . . . . Garrison Access 1 | . . . . . . . 1 . . . . Jam 1 | . . . . . . . 1 . . . . Data Cores Recovered . | . . . . . . . . . . . . Used . | . . . . . . . . . . . . Hacking Detections 24 | . 8 . . 1 3 7 5 . . . . Full Trace Events 4 | . . . . 1 1 1 1 . . . . Feedback Events 2 | . . . . . 2 . . . . . . Corruption 1 | . . . . . 1 . . . . . . Hackware Fried 1 | . . . . . 1 . . . . . . Feedback Blocked . | . . . . . . . . . . . . Robot Schematics Acquired 3 | . . . . . . . . . . 3 . Robots Built . | . . . . . . . . . . . . Authchips . | . . . . . . . . . . . . Time . | . . . . . . . . . . . . Total Robot Build Rating . | . . . . . . . . . . . . Part Schematics Acquired 18 | . . . . . 1 . . . . 17 . Parts Built 2 | . . . . . . . 2 . . . . Authchips . | . . . . . . . . . . . . Time 62 | . . . . . . . 62 . . . . Total Part Build Rating 4 | . . . . . . . 4 . . . . Part Studies Acquired . | . . . . . . . . . . . . Parts Repaired . | . . . . . . . . . . . . Time . | . . . . . . . . . . . . Parts Recycled . | . . . . . . . . . . . . Recycled Matter . | . . . . . . . . . . . . Retrieved Matter . | . . . . . . . . . . . . Retrieved Components . | . . . . . . . . . . . . Parts Scanalyzed . | . . . . . . . . . . . . Part Schematics Acquired . | . . . . . . . . . . . . Parts Damaged . | . . . . . . . . . . . . Bothacking | -11 -10 -10 -10 -9 -8 -8 -7 -7 -7 -7 -7 ------------ Run | Yrd Mat Min Exi Min Mat Sto Fac Low Low Zio Dee Used RIF Installer . | . . . . . . . . . . . . Robots Hacked . | . . . . . . . . . . . . Non-combat . | . . . . . . . . . . . . Combat . | . . . . . . . . . . . . Robot Hacks Applied . | . . . . . . . . . . . . Relay Couplers Released . | . . . . . . . . . . . . Fabnet Peak Effective % . | . . . . . . . . . . . . Robots Rewired . | . . . . . . . . . . . . Allies Hacked . | . . . . . . . . . . . . Hacks Repelled . | . . . . . . . . . . . . Allies | -11 -10 -10 -10 -9 -8 -8 -7 -7 -7 -7 -7 -------- Run | Yrd Mat Min Exi Min Mat Sto Fac Low Low Zio Dee Total Allies 15 | . . . . 3 . 12 . . . . . Largest Group 10 | . . . . 3 . 10 7 1 . . . Highest-Rated Group 173 | . . . . 40 . 173 125 12 . . . Highest-Rated Ally 31 | . . . . 16 . 31 29 12 . . . Total Orders . | . . . . . . . . . . . . Ally Attacks 174 | . . . . 14 . 80 76 4 . . . Total Damage 1928 | . . . . 167 . 899 848 14 . . . Kills 18 | . . . . 1 . 10 6 1 . . . Allies Corrupted 1 | . . . . . . . 1 . . . . Allies Melted . | . . . . . . . . . . . . Intel | -11 -10 -10 -10 -9 -8 -8 -7 -7 -7 -7 -7 ------- Run | Yrd Mat Min Exi Min Mat Sto Fac Low Low Zio Dee Active Infowar (turns) 6643 | . 429 125 275 238 457 660 640 433 381 1186 1819 Optics 1650 | . . . . . . . . . . . 1650 Sensors 3778 | . 429 125 275 238 71 . . 433 381 1186 640 Structural 4512 | . . . . . 452 660 640 431 381 1186 762 Robot Analysis Total 5 | . 2 . . 1 1 1 . . . . . Derelict Logs Recovered 5 | . . 1 . 1 . . . 2 1 . . Drone Launches . | . . . . . . . . . . . . Drone Recoveries . | . . . . . . . . . . . . Exploration | -11 -10 -10 -10 -9 -8 -8 -7 -7 -7 -7 -7 ------------- Run | Yrd Mat Min Exi Min Mat Sto Fac Low Low Zio Dee Turns Passed 7320 | 74 656 125 275 238 573 894 640 459 381 1186 1819 Spaces Moved 4267 | 39 527 117 285 182 350 477 351 292 244 741 662 Core 15 | 15 . . . . . . . . . . . Treads 14 | . . . . . . 14 . . . . . Legs 221 | . . . . . . . . . . . 221 Wheels 4017 | 24 527 117 285 182 350 463 351 292 244 741 441 Hover . | . . . . . . . . . . . . Flight . | . . . . . . . . . . . . Fastest Speed 50 | 50 80 80 95 95 95 110 145 145 145 145 130 Average Speed 129 | 68 80 94 95 106 110 128 149 145 145 145 172 Slowest Speed 320 | 80 95 95 95 155 155 320 155 145 145 145 245 Overloaded Moves . | . . . . . . . . . . . . Propulsion Burnouts . | . . . . . . . . . . . . Robots Hopped . | . . . . . . . . . . . . Potential Cave-ins 6 | . . . . . . . . . . . 6 Cave-ins Triggered 2 | . . . . . . 1 . . . . 1 Exploration Rate (%) 52 | 5 89 32 65 43 30 82 12 59 48 84 84 Regions Visited 11 Branch Regions 8 Pre-discovered Areas 6 | . 2 1 . 1 . . . . . 2 . Known Exits Taken 5 | . . . . . 1 . 1 1 1 1 . Unknown Exits Taken 6 | 1 1 1 1 1 . 1 . . . . . Scrap Searched 6 | . . . . 1 . . . . 2 3 . Spaces Dug 37 | . 1 . . 8 1 3 7 2 . . 15 Terrain Destroyed 269 | . 59 23 . 20 1 66 7 4 . . 89 Melee 12 | . . . . . . 3 7 2 . . . Projectile 27 | . 1 . . . 1 1 . . . . 24 AOE 230 | . 58 23 . 20 . 62 . 2 . . 65 Terrain Rammed . | . . . . . . . . . . . . Walls Destroyed . | . . . . . . . . . . . . Machines Disabled . | . . . . . . . . . . . . Actions | -11 -10 -10 -10 -9 -8 -8 -7 -7 -7 -7 -7 --------- Run | Yrd Mat Min Exi Min Mat Sto Fac Low Low Zio Dee Total 5469 | 64 638 127 289 205 462 646 427 309 256 800 1246 Wait 479 | 1 12 . . 2 13 20 19 1 . 20 391 Move 4255 | 38 526 116 284 181 349 476 350 291 243 740 661 Hop . | . . . . . . . . . . . . Pick Up 90 | 7 11 2 3 7 13 19 11 . 1 3 13 Fast Attach 34 | 4 1 . . . 9 12 . . . 1 7 Attach 49 | 2 3 . . . 15 9 2 . 1 . 17 Detach 21 | . . . . . 5 4 . . . 1 11 Swap 130 | 1 19 5 1 4 10 27 11 8 2 4 38 Drop 80 | 1 6 1 1 . 4 17 10 . . 4 36 Fire 280 | 10 60 3 . 11 44 49 16 7 9 . 71 Melee 23 | . . . . . . 13 8 2 . . . Ram . | . . . . . . . . . . . . Kick . | . . . . . . . . . . . . Crush . | . . . . . . . . . . . . Escape Stasis 1 | . . . . . . . . . . . 1 Rewire . | . . . . . . . . . . . . Trap . | . . . . . . . . . . . . Miscellaneous 27 | . . . . . . . . . . 27 . Route ------- -11/Scrapyard -10/Materials (discovered 5 exits: [*Mat x2] / [*Min x2] / [*Sub]) -10/Mines (discovered 2 exits: [*Mat] / *Exi) -10/Exiles (discovered 2 exits: *Min x2) -9/Mines -8/Materials (discovered 2 exits: *Fac / *Sto) -8/Storage -7/Factory -7/Lower Caves -7/Lower Caves -7/Zion (discovered 2 exits: *Dee / [*Pro]) -7/Deep Caves (discovered 1 exit: [*Pro]) History --------- Turn | Location | Event 14 | -11/Scrapyard | Discovered new exit (range 15) 75 | -11/Scrapyard | Entered Materials 248 | -10/Materials | Discovered new exit (range 6) 277 | -10/Materials | Discovered new exit (range 9) 279 | -10/Materials | Central database locked down 301 | -10/Materials | Build established: Mutant 484 | -10/Materials | Discovered new exit (range 7) 518 | -10/Materials | Discovered new exit (range 7) 579 | -10/Materials | Core integrity fell below 50% 676 | -10/Materials | Discovered new exit (range 13) 731 | -10/Materials | Entered Mines 751 | -10/Mines | Discovered new exit (range 13) 767 | -10/Mines | Learned location of Recycling (-8) 820 | -10/Mines | Met a Derelict bent on vengeance 836 | -10/Mines | Found a damaged Exp. Sensor Array with a note attached 838 | -10/Mines | Found Prototype Device 839 | -10/Mines | Identified Exp. Sensor Array 852 | -10/Mines | Deemed a non-threat by the Exiles lab entrance 852 | -10/Mines | Discovered new exit (range 5) 856 | -10/Mines | Entered Exiles 869 | -10/Exiles | Discovered new exit (range 15) 880 | -10/Exiles | Met 8R-AWN 896 | -10/Exiles | Met EX-HEX 960 | -10/Exiles | Met EX-BIN 972 | -10/Exiles | Aligned with FarCom system 973 | -10/Exiles | Given EX-Vault access code 994 | -10/Exiles | Opened EX-Vault 999 | -10/Exiles | Found Potential Leg 1001 | -10/Exiles | Found Potential Leg 1022 | -10/Exiles | Warned to stay clear of 0b10 Research branches 1049 | -10/Exiles | Met EX-DEC 1124 | -10/Exiles | Discovered new exit (range 10) 1131 | -10/Exiles | Left Exiles lab with Potential Leg 1131 | -10/Exiles | Entered Mines 1154 | -9/Mines | Received a Rocket Launcher from a helpful Derelict 1201 | -9/Mines | A weapon hastily lodged in a ceiling crevice suddenly fell to the ground 1232 | -9/Mines | Assisted by bots powering up and referring to "LRC-V3" 1318 | -9/Mines | Assembled infested the area 1320 | -9/Mines | Learned location of Zion (-7) 1323 | -9/Mines | Assisted by a Guerilla fighting off Assembled 1361 | -9/Mines | Discovered new exit (range 6) 1369 | -9/Mines | Entered Materials 1369 | -8/Materials | Evolved 4 slots: Propulsion x1, Utility x2, Weapon x1 1469 | -8/Materials | Garrison activated, responded to threat 1586 | -8/Materials | Lost 9 parts (2p3n1u3w) 1624 | -8/Materials | Discovered new exit (range 14) 1672 | -8/Materials | System Shield fried by hacking feedback 1725 | -8/Materials | Lost 3 parts (1n2u) 1777 | -8/Materials | Identified exit to Storage 1850 | -8/Materials | Central database locked down 1877 | -8/Materials | Discovered new exit (range 8) 1903 | -8/Materials | Build established: Scavenger-Skirmisher 1942 | -8/Materials | Entered Storage 2036 | -8/Storage | Lost 3 parts (1n2w) 2077 | -8/Storage | Crushed by falling debris 2077 | -8/Storage | Core integrity fell below 50% 2216 | -8/Storage | Core integrity fell below 20% 2229 | -8/Storage | Lost 3 parts (2n1w) 2242 | -8/Storage | Destroyed 8 combat bots 2276 | -8/Storage | Met a pair of Derelict thieves 2365 | -8/Storage | Assisted by bots powering up and referring to "LRC-V3" 2766 | -8/Storage | Discovered new exit (range 16) 2836 | -8/Storage | Entered Factory 2836 | -7/Factory | Accompanied by 7 allies 2836 | -7/Factory | Evolved 2 slots: Utility x2 3034 | -7/Factory | Garrison activated, responded to threat 3293 | -7/Factory | Fabricated Plasma Cutter? 3466 | -7/Factory | Discovered new exit (range 6) 3476 | -7/Factory | Identified exit to Lower Caves 3476 | -7/Factory | Entered Lower Caves 3476 | -7/Lower Caves | Accompanied by 1 ally 3484 | -7/Lower Caves | Learned Factory security intel 3485 | -7/Lower Caves | Encountered a Warlord checkpoint 3566 | -7/Lower Caves | Learned Factory emergency access door positions 3782 | -7/Lower Caves | Build established: Assassin 3922 | -7/Lower Caves | Discovered new exit (range 10) 3933 | -7/Lower Caves | Identified exit to Lower Caves 3935 | -7/Lower Caves | Entered another Lower Caves area 3943 | -7/Lower Caves | Learned 4 Factory zone layouts 4054 | -7/Lower Caves | Entered an active Warlord outpost 4070 | -7/Lower Caves | Learned Research emergency access door positions 4070 | -7/Lower Caves | Learned Research security intel 4070 | -7/Lower Caves | Learned Factory terminal intel 4070 | -7/Lower Caves | Learned Research garrison access intel 4174 | -7/Lower Caves | Build established: Skirmisher 4258 | -7/Lower Caves | Discovered new exit (range 14) 4314 | -7/Lower Caves | Identified exit to Zion 4316 | -7/Lower Caves | Entered Zion 4371 | -7/Zion | Found Prototype Special Weapon 4371 | -7/Zion | Identified RU-N14's Throwing Claymores 4376 | -7/Zion | Found RU-N14's Throwing Claymores 4412 | -7/Zion | Given the Hacking Drone Bay 4416 | -7/Zion | Discovered new exit (range 12) 4817 | -7/Zion | Rebuked by Imprinter 4879 | -7/Zion | Learned location of Data Miner (-6) 5249 | -7/Zion | Received a hallucinogenic algorithm 5495 | -7/Zion | Discovered new exit (range 5) 5498 | -7/Zion | Saw the warning signs outside the Deep Caves entrance 5500 | -7/Zion | Identified exit to Deep Caves 5502 | -7/Zion | Entered Deep Caves 5683 | -7/Deep Caves | Attacked by Z-Imprinter 5700 | -7/Deep Caves | Destroyed Z-Imprinter 5732 | -7/Deep Caves | Lost 3 parts (1p1u1w) 5832 | -7/Deep Caves | Z-Facility disabled 5883 | -7/Deep Caves | Found Prototype Protection 5883 | -7/Deep Caves | Identified Zio. Weapon Casing 5887 | -7/Deep Caves | Found Zio. Weapon Casing 5908 | -7/Deep Caves | Found Zio. Weapon Casing 6116 | -7/Deep Caves | Build established: Gunner 6230 | -7/Deep Caves | Spotted AG-99686 6275 | -7/Deep Caves | Lost 3 parts (2u1w) 6289 | -7/Deep Caves | Destroyed AG-99686 6361 | -7/Deep Caves | Spotted AG-87759 6375 | -7/Deep Caves | Triggered Deep Caves wall 6375 | -7/Deep Caves | Spotted AS-34955 6375 | -7/Deep Caves | Spotted AS-53536 6376 | -7/Deep Caves | Core integrity fell below 50% 6381 | -7/Deep Caves | Destroyed AS-53536 6383 | -7/Deep Caves | Exposed GOLEM chamber 6409 | -7/Deep Caves | Destroyed AS-34955 6416 | -7/Deep Caves | Destroyed 36 combat bots 6434 | -7/Deep Caves | Found GOLEM Unit 6439 | -7/Deep Caves | Found GOLEM Unit 6445 | -7/Deep Caves | Found GOLEM Unit 6582 | -7/Deep Caves | Discovered new exit (range 6) 7031 | -7/Deep Caves | Build established: Golem 7057 | -7/Deep Caves | Spotted AG-41472 7057 | -7/Deep Caves | Crushed by falling debris 7314 | -7/Deep Caves | Core integrity fell below 20% 7319 | -7/Deep Caves | Found GOLEM Unit 7321 | -7/Deep Caves | Destroyed by AG-87759 with Assembled Focal Cannon Last Messages --------------- 07012_ AG-97473 GOLEM Unit beginning Asb. Biocell Array integration. 07057_ The unstable cave ceiling collapses. 07057_ Crushed by falling debris. 07060_ Acquired Prototype Leg. 07294_ Dropped Structural Scanner. 07295_ GOLEM Unit beginning Asb. Nanovents integration. 07295_ AG-87759: "DSI9AT1D G8OHIBQ29FWG 26R186 QD12WHW8W33 TDK1 81FTS" 07295_ Chain reaction triggered in Lgt. Angular Momentum Engine. 07296_ Asb. Nanovents integration complete. 07299_ Adv. EMP Blaster destroyed. 07300_ GOLEM Unit beginning Asb. Focal Cannon integration. 07302_ Destroyed Asb. Nanovents. 07303_ AG-87759 GOLEM Unit beginning Asb. Nanovents integration. 07304_ AG-87759 Asb. Nanovents integration complete. 07310_ AG-87759 misfires. 07313_ A GOLEM Unit tumbles out of the Wall Chamber. 07315_ GOLEM Unit springs to life. 07316_ AG-10104 GOLEM Unit beginning Asb. Alloy Leg integration. 07319_ Discarded GOLEM Unit. 07319_ Acquired GOLEM Unit. Map ----- +----------------------------------------------------+ | | | | | | | | | | | | | | | | | | | ????????""###########?????????????? | | ????????" ?????????????? | | ?????????? ##??????????????? | | ????????""" #???????????? | | ????????" ######???????????? | | ????????" # # ##???????????? | | ????????"" # # #####????????? | | ????????" # #####????????? | | ????????"" # ## ##????????? | | ????????" ## ##???????## | | ????????""" ## ##??????### | | ????????" ## ######?#### | | ????????" # ########## | | ???????""! ##### | | ???????## ###### | | ???????""" ###### | | ????????""@ #####?## # | | ????????" ###?### # | | ????????"G ########## ## | | ???????""G ### #####"### | | ??????### ### #### #### | | ??""""" # "##### | | ??" ] ##"####?? | | ??" #####??? | | ??" G ##???? | | ??" [ ####???? | | ??" [ b ####???? | | ??" =l = ##????? | | ??" ! !! = g ##????? | | ????"""!%! = = ##????? | | ?????####! ##????? | | ?????"#" ! = ##????? | | ???????""" / / ##????? | | ????????"[ M ####### | | ????????"] ####### | | ???????"" * * / ##" | | ???????## * / #" | | ???????"" "" | | ????????" "" | | ????????" | | ????????""" | +----------------------------------------------------+ Best States ------------- Heat Dissipation 64 Energy Generation 27 Energy Capacity 1100 Matter Stores 300 Matter Capacity 300 Sight Range 20 Robot Scan Range 20 Terrain Scan Density 10 Base Temperature (-) 100 Armor Coverage 800 Weapon Shielding 100 Weapon Cycling 15 Evasion (%) 55 Targeting Accuracy 8 Recoil Reduction 2 Offensive Hacking 10 Defensive Hacking 10 Item Schematics ----------------- Plasma Cutter | -8/Materials | Hacked Arm. Leg | -7/Zion | Archive Spear | -7/Zion | Archive Imp. Core Shielding | -7/Zion | Archive Kinecellerator | -7/Zion | Archive Imp. Launcher Guidance Computer | -7/Zion | Archive Matter Filter | -7/Zion | Archive Phase Cannon | -7/Zion | Archive Proton Missile Launcher | -7/Zion | Archive System Restoration Module | -7/Zion | Archive Lyr. Heavy Armor Plating | -7/Zion | Archive Adv. Signal Interpreter | -7/Zion | Archive Med. Treads | -7/Zion | Archive Adv. Assault Cannon | -7/Zion | Archive Power Sword | -7/Zion | Archive Battle Cannon | -7/Zion | Free Hvy. Riot Gun | -7/Zion | Free Ripper | -7/Zion | Free Robot Schematics ------------------ L-31 Rogue | -7/Zion | Archive R-06 Scavenger | -7/Zion | Archive W-25 Informer | -7/Zion | Archive Fabricated ------------ Plasma Cutter | x2 | -7/Factory Repaired ---------- Nothing Studied --------- None Alien Tech Used ----------------- None Achievements -------------- Freedom! Challenges ------------ None Game ------ Seed NetworkedWeaponsLink Manual? 0 Play Time 01:26:29 Cumulative 1170.5 hours Start 2025.10.12 @ 20:55:14 End 2025.10.12 @ 22:55:05 Sessions 3 Manual Loads 0 Difficulty Rogue Special Mode None Game No. 587 Rogue 460 Adventurer 125 Explorer 2 Win Type - Total 134 Types 103/10/9/3/3/0/0/4/2/0 Lore% 75 Gallery% 80 Achievement% 62 Wizard Run 0 Options --------- Layout 0 ASCII 0 Keyboard 1 Movement Numpad Keybinds 0 Fullscreen 1 Font 36/Terminus++ Map View 76x50 Zoom Use 0% Tactical HUD 1 Map Filters NONE Filters NONE Steam 1 RUN: e1f68088-fa6b-4839-9015-6a5732b3bfe0